Cogmind - Beta 16 @@@ ROGUE MODE // 2025.11.14 @ 14:16:28 // Winter2019/RPGLIKE Player: GFYguy Result: Destroyed by YI-UF0 with YI-UF0's Doublenader Performance ------------- Evolutions (1) 500 Regions Visited (4) 800 Robots Destroyed (14) 70 Value Destroyed (420) 420 Prototype IDs (4) 80 Alien Tech Used (0) 0 Bonus (164) 164 TOTAL SCORE: 2034 Bonus ------- Follower Combat Kills 164 Cogmind --------- Core Integrity 0/600 Matter 186/300 Energy 250/250 System Corruption 0% Temperature Cool (87) Movement Flying (32) Location -9/Mines Parts ------- > --- POWER (1) -------- Ion Engine > --- PROPULSION (4) --- Flight Unit Flight Unit VTOL Module > --- UTILITY (3) ------ Disposable Heat Sink Improved Targeting Computer Improved Targeting Computer > --- WEAPON (3) ------- Improved Light Cannon Improved Light Cannon Improved Light Cannon > --- INVENTORY (1) ---- Experimental Sensor Array Peak State ------------ > --- POWER ------------ Light Ion Engine > --- PROPULSION ------- Flight Unit Flight Unit VTOL Module VTOL Module > --- UTILITY ---------- Experimental Sensor Array Tractor Beam > --- WEAPON ----------- Improved Light Cannon Improved Light Cannon Improved Light Cannon > --- INVENTORY -------- (None) [Rating: 23] Favorites ----------- Power Light Ion Engine Engine Light Ion Engine Propulsion Flight Unit Leg Aluminum Leg Flight Unit Flight Unit Utility Tractor Beam Device Tractor Beam Processor Improved Targeting Computer Weapon Improved Light Cannon Energy Gun Medium Laser Ballistic Cannon Improved Light Cannon Build | -11 -10 -10 -9 -9 ------- Run | Yrd Mat Min Mat Min Slots Evolved 7 | 2 . . 4 1 Power . | . . . . . Propulsion 3 | 1 . . 2 . Utility 2 | 1 . . . 1 Weapon 2 | . . . 2 . Parts Attached 22 | 5 2 4 9 2 Power 2 | 1 . . 1 . Engine 2 | 1 . . 1 . Core . | . . . . . Reactor . | . . . . . Propulsion 8 | 2 1 2 3 . Treads . | . . . . . Leg 3 | 2 1 . . . Wheel . | . . . . . Hover . | . . . . . Flight 5 | . . 2 3 . Utility 7 | . 1 2 2 2 Device 4 | . 1 2 1 . Storage . | . . . . . Processor 3 | . . . 1 2 Hackware . | . . . . . Protection . | . . . . . Artifact . | . . . . . Weapon 5 | 2 . . 3 . Energy Gun 2 | 2 . . . . Energy Cannon . | . . . . . Ballistic Gun . | . . . . . Ballistic Cannon 3 | . . . 3 . Launcher . | . . . . . Special Weapon . | . . . . . Impact Weapon . | . . . . . Slashing Weapon . | . . . . . Piercing Weapon . | . . . . . Special Melee Weapon . | . . . . . Unidentified Prototypes 1 | . . 1 . . Parts Lost . | . . . . . Power . | . . . . . Propulsion . | . . . . . Utility . | . . . . . Weapon . | . . . . . Highest Loss Streak . | . . . . . To Critical Strikes . | . . . . . Average Backups . | . . . . 1 Power . | . . . . . Propulsion . | . . . . . Utility . | . . . . 1 Weapon . | . . . . . Tool/Special . | . . . . . Unused Backups . | . . . . . Power . | . . . . . Propulsion . | . . . . . Utility . | . . . . . Weapon . | . . . . . Tool/Special . | . . . . . Average Slot Usage (%) 87 | . 77 85 96 90 Engine 13 | . 16 16 11 9 Leg 15 | . 33 22 . . Flight 17 | . . 9 36 27 Device 14 | . 10 18 17 9 Processor 4 | . . . 5 15 Energy Gun 9 | . 16 16 3 . Ballistic Cannon 10 | . . . 22 27 Peak Build Rating 23 | 4 5 14 23 17 Average Rating 9 | 2 4 6 16 16 On Entrance 7 | . 4 5 14 15 Avg Prop Armor Cover (%) 2 | . . . 2 . Naked Turns . | . . . . . Heaviest Build 18 | 5 6 7 18 18 Greatest Support 20 | 20 20 20 18 19 Greatest Overweight (x) 1 | . . 1 1 1 Average Overweight (x) . | . . . . . Largest Inventory Capacity 1 | . . 1 1 1 Average Capacity . | . . . 1 1 Most Carried 1 | . . 1 1 1 Average Carried . | . . . . 1 Final Capacity 1 | . . 1 1 1 Final Carried 1 | . . 1 1 1 Class Distribution -------------------- 57% | Hacker-Mutant 22% | Hacker-Sprinter 10% | Mutant 9% | Hacker-Gunner Dominant Class ---------------- Hacker-Mutant | -10/Materials Hacker-Mutant | -10/Mines Hacker-Sprinter | -9/Materials Hacker-Sprinter | -9/Mines Resources | -11 -10 -10 -9 -9 ----------- Run | Yrd Mat Min Mat Min Matter Collected 770 | 214 56 40 294 166 Remotely 390 | . 56 40 294 . Salvage Created 493 | . 169 90 184 50 Parts 24 | . 4 1 12 7 Haulers Intercepted 1 | . 1 . . . Recyclers Shooed 3 | . 1 1 1 . Parts Field Recycled . | . . . . . Retrieved Matter . | . . . . . Parts Self-Destructed . | . . . . . Prevented . | . . . . . Parts Restored . | . . . . . Kills | -11 -10 -10 -9 -9 ------- Run | Yrd Mat Min Mat Min Combat Hostiles Destroyed 13 | . 2 . 5 6 Guns 1 | . 1 . . . Cannons 11 | . . . 5 6 Classes Destroyed 8 | . 3 1 3 1 Tunneler 1 | . 1 . . . Hauler 1 | . 1 . . . Recycler 2 | . . 1 1 . Watcher 1 | . . . 1 . Grunt 4 | . 2 . 2 . Duelist 1 | . . . 1 . Sentry 4 | . . . 2 2 Assembled 4 | . . . . 4 Best Kill Streak 6 | . 2 1 6 4 Combat Bots Only 4 | . 1 . 2 4 Max Kills in Single Turn 2 | . 1 1 2 2 Gunslinging . | . . . . . Exploded . | . . . . . Melee . | . . . . . Uniques/NPCs Destroyed . | . . . . . Combat | -11 -10 -10 -9 -9 -------- Run | Yrd Mat Min Mat Min Hostile Shots Fired 124 | . 25 26 36 37 Missed 44 | . 6 15 8 15 Hits 80 | . 19 11 28 22 Melee 2 | . . . 1 1 Projectile 78 | . 19 11 27 21 AOE 8 | . . . . 8 Critical Strikes 1 | . . 1 . . Part Disruptions 2 | . . . . 2 Damage Taken 1265 | . 210 133 399 523 Core 1032 | . 176 106 320 430 Absorbed by Shields . | . . . . . Redirected to Core 801 | . 109 93 265 334 Core Remaining (%) 80 | 100 . 61 . . Volleys Fired 69 | . 21 10 23 15 Largest 3 | . 1 1 3 3 Hottest 99 | . 50 50 99 99 Shots Fired 124 | . 21 10 53 40 Gun 35 | . 21 10 4 . Cannon 89 | . . . 49 40 Launcher . | . . . . . Special . | . . . . . Kinetic 89 | . . . 49 40 Thermal 35 | . 21 10 4 . Explosive . | . . . . . Electromagnetic . | . . . . . Robot Hit Streak 10 | . 6 4 10 5 Robot Miss Streak 9 | . 1 3 9 2 Penetration Max . | . . . . . Secondary Targets . | . . . . . Shots Hit Robots 60 | . 14 6 24 16 Core Hits 22 | . 6 2 7 7 Critical Kills . | . . . . . Critical Parts Destroyed . | . . . . . Critical Strikes 4 | . 1 . 2 1 Burn 3 | . 1 . 2 . Blast 1 | . . . . 1 Melee Attacks . | . . . . . Impact . | . . . . . Slashing . | . . . . . Piercing . | . . . . . Sneak Attacks . | . . . . . Combat Hostiles . | . . . . . Follow-up Attacks . | . . . . . Damage Inflicted 1206 | . 213 76 571 346 Guns 328 | . 213 76 39 . Cannons 878 | . . . 532 346 Explosions . | . . . . . Melee . | . . . . . Ramming . | . . . . . Kinetic 878 | . . . 532 346 Thermal 328 | . 213 76 39 . Explosive . | . . . . . Electromagnetic . | . . . . . Impact . | . . . . . Slashing . | . . . . . Piercing . | . . . . . Highest Corruption . | . . . . . Average Corruption . | . . . . . Corruption Purged . | . . . . . Corruption Blocked . | . . . . . Overload Shots . | . . . . . Overflow Damage 17 | . . . 17 . Projectiles 17 | . . . 17 . Explosions . | . . . . . Melee . | . . . . . Knockbacks 8 | . . . 2 6 Impact . | . . . . . Kinetic 8 | . . . 2 6 Secondary . | . . . . . Self-Inflicted Damage . | . . . . . Shots . | . . . . . Rammed . | . . . . . Targets Rammed . | . . . . . Kicked . | . . . . . Crushed . | . . . . . Highest Temperature 467 | . 232 74 467 197 Average Temperature 124 | . 109 38 156 117 Received Heat Transfer 441 | . 114 81 159 87 Effects 5 | . . . 5 . Interference 1 | . . . 1 . Matter Decay 2 | . . . 2 . Short Circuit 2 | . . . 2 . Siege Activations . | . . . . . Martial Activations . | . . . . . Shielding Activations . | . . . . . Robots Disrupted . | . . . . . Combat Hostiles . | . . . . . Robots Corrupted . | . . . . . Combat Hostiles . | . . . . . Parts Fried . | . . . . . Impact Corruptions . | . . . . . Robots Melted 1 | . 1 . . . Combat Hostiles 1 | . 1 . . . Parts Melted 1 | . . . 1 . Heat Transferred 1184 | . 703 222 259 . Parts Sabotaged . | . . . . . Parts Stolen . | . . . . . Parts Stripped . | . . . . . Power Chain Reactions . | . . . . . Alert | -11 -10 -10 -9 -9 ------- Run | Yrd Mat Min Mat Min Maximum Alert Level 1 | . . . 1 . Low Security (%) 94 | 100 100 100 79 100 Level 1 5 | . . . 20 . Level 2 . | . . . . . Level 3 . | . . . . . Level 4 . | . . . . . Level 5 . | . . . . . High Security . | . . . . . Max Security . | . . . . . Peak Influence 238 | . 30 81 238 143 Initial 88 | . . 4 13 88 Average 55 | . 6 23 111 123 Influence Increases 558 | . 52 86 335 85 Destroy 0b10 Robot/C 340 | . 40 60 200 40 Destroy 0b10 Robot/NC 30 | . 10 5 15 . Destroy Leader 64 | . 2 10 52 . Allied During Kill 50 | . . 11 39 . Successful Hack 12 | . . . 12 . Disable Machine 30 | . . . 15 15 Destroy Structure 2 | . . . 2 . Partial Spotted 30 | . . . . 30 Influence Decreases 435 | . 40 62 143 190 Entered New Map 171 | . . 8 23 140 Time Decay 244 | . 40 54 100 50 Lost Ally 20 | . . . 20 . Squads Dispatched 1 | . . . 1 . Investigation . | . . . . . Extermination . | . . . . . Reinforcement 1 | . . . 1 . Assault . | . . . . . Garrison . | . . . . . Intercept . | . . . . . Searches Triggered . | . . . . . Construction Impeded . | . . . . . Haulers Reinforced . | . . . . . Active Scanning Responses . | . . . . . Cargo Convoy Interrupts . | . . . . . Stealth | -11 -10 -10 -9 -9 --------- Run | Yrd Mat Min Mat Min Distress Signals 6 | . 1 . 5 . Communications Jammed . | . . . . . Distress Signals . | . . . . . Times Spotted 44 | . 4 5 14 21 Peak Tracking Total 18 | . 3 5 5 18 Tactical Retreats 2 | . . . . 2 Traps | -11 -10 -10 -9 -9 ------- Run | Yrd Mat Min Mat Min Traps Triggered . | . . . . . Indirectly . | . . . . . Trap Hack Attempts . | . . . . . Triggered . | . . . . . Disarmed . | . . . . . Reprogrammed . | . . . . . Reused . | . . . . . Traps Extracted . | . . . . . Installed . | . . . . . Triggered . | . . . . . Machines | -11 -10 -10 -9 -9 ---------- Run | Yrd Mat Min Mat Min Machines Disabled 3 | . . . 1 2 Max in Single Turn 1 | . . . 1 1 Machines Repaired . | . . . . . Machines Dismantled . | . . . . . Machines Sabotaged . | . . . . . Overloaded Fab Kills . | . . . . . Hacking | -11 -10 -10 -9 -9 --------- Run | Yrd Mat Min Mat Min Machines Accessed 3 | . . . 3 . Terminals 1 | . . . 1 . Fabricators . | . . . . . Repair Stations . | . . . . . Recycling Units . | . . . . . Scanalyzers 2 | . . . 2 . Garrison Access . | . . . . . Total Hacks 4 | . . . 4 . Successful 2 | . . . 2 . Failed 1 | . . . 1 . Catastrophic . | . . . . . Database Lockouts 1 | . . . 1 . Manual . | . . . . . Terminals 2 | . . . 2 . Fabricators . | . . . . . Repair Stations . | . . . . . Recycling Units . | . . . . . Scanalyzers 2 | . . . 2 . Garrison Access . | . . . . . Terminal Hacks 1 | . . . 1 . Prototype ID Bank 1 | . . . 1 . Fabricator Hacks . | . . . . . Repair Station Hacks . | . . . . . Recycling Unit Hacks . | . . . . . Scanalyzer 1 | . . . 1 . Retrieve Study 1 | . . . 1 . Garrison Access Hacks . | . . . . . Unauthorized Hacks . | . . . . . Terminals . | . . . . . Fabricators . | . . . . . Repair Stations . | . . . . . Recycling Units . | . . . . . Scanalyzers . | . . . . . Garrison Access . | . . . . . Data Cores Recovered 1 | . . . 1 . Used . | . . . . . Hacking Detections 2 | . . . 2 . Full Trace Events . | . . . . . Feedback Events . | . . . . . Feedback Blocked . | . . . . . Robot Schematics Acquired . | . . . . . Robots Built . | . . . . . Authchips . | . . . . . Time . | . . . . . Total Robot Build Rating . | . . . . . Part Schematics Acquired . | . . . . . Parts Built . | . . . . . Authchips . | . . . . . Time . | . . . . . Total Part Build Rating . | . . . . . Part Studies Acquired 1 | . . . 1 . Parts Repaired . | . . . . . Time . | . . . . . Parts Recycled . | . . . . . Recycled Matter . | . . . . . Retrieved Matter . | . . . . . Retrieved Components . | . . . . . Parts Scanalyzed . | . . . . . Part Schematics Acquired . | . . . . . Parts Damaged . | . . . . . Bothacking | -11 -10 -10 -9 -9 ------------ Run | Yrd Mat Min Mat Min Used RIF Installer . | . . . . . Robots Hacked . | . . . . . Non-combat . | . . . . . Combat . | . . . . . Robot Hacks Applied . | . . . . . Relay Couplers Released . | . . . . . Fabnet Peak Effective % . | . . . . . Robots Rewired . | . . . . . Allies Hacked . | . . . . . Hacks Repelled . | . . . . . Allies | -11 -10 -10 -9 -9 -------- Run | Yrd Mat Min Mat Min Total Allies 3 | . . 3 . . Largest Group 3 | . . 3 3 . Highest-Rated Group 40 | . . 40 40 . Highest-Rated Ally 16 | . . 16 16 . Total Orders . | . . . . . Ally Attacks 47 | . . 11 36 . Total Damage 402 | . . 88 314 . Kills 9 | . . 3 6 . Allies Corrupted . | . . . . . Allies Melted . | . . . . . Intel | -11 -10 -10 -9 -9 ------- Run | Yrd Mat Min Mat Min Active Infowar (turns) 140 | . . 37 103 . Sensors 140 | . . 37 103 . Robot Analysis Total . | . . . . . Derelict Logs Recovered 2 | . . . . 2 Drone Launches . | . . . . . Drone Recoveries . | . . . . . Exploration | -11 -10 -10 -9 -9 ------------- Run | Yrd Mat Min Mat Min Turns Passed 822 | 64 184 240 219 115 Spaces Moved 724 | 51 112 185 213 163 Core 7 | 7 . . . . Treads . | . . . . . Legs 275 | 44 112 119 . . Wheels . | . . . . . Hover . | . . . . . Flight 442 | . . 66 213 163 Fastest Speed 28 | 50 120 37 28 32 Average Speed 72 | 110 120 91 51 32 Slowest Speed 120 | 120 120 120 112 112 Overloaded Moves . | . . . . . Propulsion Burnouts . | . . . . . Robots Hopped 3 | . . . 3 . Potential Cave-ins . | . . . . . Cave-ins Triggered . | . . . . . Exploration Rate (%) 27 | 4 29 45 27 33 Regions Visited 4 Branch Regions 2 Pre-discovered Areas . | . . . . . Known Exits Taken . | . . . . . Unknown Exits Taken 4 | 1 1 1 1 . Scrap Searched 1 | . . . . 1 Spaces Dug . | . . . . . Terrain Destroyed 2 | . . . 2 . Melee . | . . . . . Projectile 2 | . . . 2 . AOE . | . . . . . Terrain Rammed . | . . . . . Walls Destroyed . | . . . . . Machines Disabled . | . . . . . Actions | -11 -10 -10 -9 -9 --------- Run | Yrd Mat Min Mat Min Total 907 | 56 140 244 275 192 Wait 65 | . 5 40 9 11 Move 714 | 50 111 184 206 163 Hop 3 | . . . 3 . Pick Up 2 | . . 1 1 . Fast Attach 17 | 5 1 4 5 2 Attach 2 | . . . 2 . Detach 1 | . . . 1 . Swap 4 | . 1 . 3 . Drop 12 | 1 1 3 6 1 Fire 69 | . 21 10 23 15 Melee . | . . . . . Ram . | . . . . . Kick . | . . . . . Crush . | . . . . . Escape Stasis . | . . . . . Rewire . | . . . . . Trap . | . . . . . Miscellaneous 18 | . . 2 16 . Route ------- -11/Scrapyard -10/Materials -10/Mines (discovered 2 exits: *Mat x2) -9/Materials -9/Mines History --------- Turn | Location | Event 8 | -11/Scrapyard | Upgraded with Propulsion slot (x1) 8 | -11/Scrapyard | Upgraded with Utility slot (x1) 16 | -11/Scrapyard | Discovered new exit (range 16) 65 | -11/Scrapyard | Entered Materials 145 | -10/Materials | Discovered new exit (range 10) 249 | -10/Materials | Entered Mines 254 | -10/Mines | Met a Derelict bent on vengeance 330 | -10/Mines | Discovered new exit (range 12) 389 | -10/Mines | Build established: Hacker-Mutant 396 | -10/Mines | Assisted by bots powering up and referring to "LRC-V3" 451 | -10/Mines | Found a damaged Exp. Sensor Array with a note attached 452 | -10/Mines | Found Prototype Device 452 | -10/Mines | Identified Exp. Sensor Array 455 | -10/Mines | Discovered new exit (range 12) 461 | -10/Mines | Received a Rocket Launcher from a helpful Derelict 489 | -10/Mines | Entered Materials 489 | -9/Materials | Accompanied by 3 allies 491 | -9/Materials | Reached level 2 497 | -9/Materials | Upgraded with Propulsion slot (x1) 501 | -9/Materials | Upgraded with Weapon slot (x1) 506 | -9/Materials | Core integrity fell below 50% 559 | -9/Materials | Central database locked down 584 | -9/Materials | Reached level 3 586 | -9/Materials | Upgraded with Propulsion slot (x1) 591 | -9/Materials | Upgraded with Weapon slot (x1) 692 | -9/Materials | Discovered new exit (range 12) 708 | -9/Materials | Entered Mines 710 | -9/Mines | Reached level 4 711 | -9/Mines | Learned Materials trap positions 719 | -9/Mines | Lost 3 allies 732 | -9/Mines | Upgraded with Utility slot (x1) 738 | -9/Mines | Assembled infested the area 743 | -9/Mines | Learned Materials security intel 745 | -9/Mines | YI-UF0 nonchalantly dropped a Grenade Launcher on the ground 819 | -9/Mines | Core integrity fell below 20% 823 | -9/Mines | Destroyed by YI-UF0 with YI-UF0's Doublenader Last Messages --------------- 00749_ YI-UF0: "BWOOM!" 00749_ T-07 Excavator destroyed. 00751_ YI-UF0: "BADABOOM!" 00786_ as-87012 knocked back. 00786_ Laser Drill disabled. 00789_ as-87012 destroyed. 00793_ as-16181 knocked back. 00796_ Destroyed Asb. Hover Unit. 00796_ as-16181 knocked back. 00796_ as-16181 suffers critical hit (Blast). 00796_ Destroyed Asb. Blade. 00796_ as-16181 knocked back. 00802_ as-51866 destroyed. 00805_ Acquired 12 matter. 00807_ as-53359 knocked back. 00810_ as-42103 destroyed. 00813_ as-16579 destroyed. 00814_ YI-UF0: "WHOMP!" 00814_ as-53359 destroyed. 00817_ YI-UF0 mumbles something. Map ----- +----------------------------------------------------+ | ?????????????????????????????????????????????????? | | ?????????????????????????????????????????????????? | | ?????????????????????????????????????????????????? | | ?????????????????????????????????????????????????? | | ?????????????????????????????????????????????????? | | ???????????????????????????????######??#?????????? | | ??????????????????????????????? #??# ????????? | | ??????????????????????????????# ##?# ????????? | | ??????????????????????????????# ### ????????? | | ?????????????????????????????## % ## ????????? | | ?????????????????????????????# ## ????????? | | ????????????????????????????## ## ???????? | | ????????????????????????????# % ## ???????? | | ???????????????????????????## ## ???????? | | ???????????????????????????# ## ???????? | | ???????????????????????????# %## ???????? | | ???????????????????????????# ### ###????? | | ?????????????????????????### ##?# ##???? | | ?????????????????????????# ##??# #???? | | ?????????????????????????# ##????# ##??? | | ?????????????????????????# #?????# #### | | ???????????????????????### ###????## [[ | | ???????????????????????# g a #?????## !% | | ??????????????????????## #??????######## | | ??????????????????????# ## #?????????????? | | ??????????????????????# @ #### ##????????????? | | ??????????????????????## ##?# ####?????????? | | ???????????????????????## #??# ###???????? | | ????????????????????????#####??## ###?????? | | ????????????????????????????????## ##??### | | ?????????????????????????????????## ### | | ??????????????????????????????????## | | ???????????????????????????????????## ] | | ????????????????????????????????????## ## #### | | ?????????????????????????????????????## ####??# # | | ?????????????????????????????????????## #?????# # | | ?????????????????????????????????????# ##????# # | | ?????????????????????????????????????# #????# # | | ?????????????????????????????????????## #? # | | ??????????????????????????????????????## | | ???????????????????????????????????????## | | ?????????????????????????????????????????# | | ?????????????????????????????????????????? | | ?????????????????????????????????????????? | | ?????????????????????????????????????????? # | | ?????????????????????????????????????????? ## | | ??????????????????????????????????????????? ##? | | ???????????????????????????????????????????#####?? | | ?????????????????????????????????????????????????? | | ?????????????????????????????????????????????????? | +----------------------------------------------------+ Best States ------------- Heat Dissipation 39 Coolant Potential 50 Energy Generation 10 Energy Capacity 250 Matter Stores 300 Matter Capacity 300 Sight Range 16 Robot Scan Range 20 Terrain Scan Density 10 Evasion (%) 64 Targeting Accuracy 12 Salvage Targeting 1 Offensive Hacking 15 Defensive Hacking 5 Item Schematics ----------------- None Robot Schematics ------------------ None Fabricated ------------ Nothing Repaired ---------- Nothing Studied --------- Flight Unit | -9/Materials | Hacked Alien Tech Used ----------------- None Achievements -------------- None Challenges ------------ None RPGLIKE | -11 -10 -10 -9 -9 --------- Run | Yrd Mat Min Mat Min Levels Raised 3 | . . . 2 1 XP Earned 7788 | 3000 200 859 2954 775 XP Spent 6750 | 1000 1400 250 3200 900 Upgrades 13 | 2 4 1 4 2 Propulsion Slot 3 | 1 . . 2 . Utility Slot 2 | 1 . . . 1 Weapon Slot 2 | . . . 2 . Mass Support 1 | . . . . 1 Inventory Capacity 1 | . . 1 . . Hack Attack % 3 | . 3 . . . Hack Defense % 1 | . 1 . . . Protomatter Created 116 | . . . 72 44 Integrity Restored 426 | . . 48 378 . Core 426 | . . 48 378 . Protomatter Decayed 89 | . . . 89 . Game ------ Seed GreatOvertunedFrame Manual? 0 Play Time 00:14:38 Cumulative 43.9 hours Start 2025.11.14 @ 14:02:30 End 2025.11.14 @ 14:16:28 Sessions 1 Manual Loads 0 Difficulty Rogue Special Mode Winter2019/RPGLIKE Game No. 91 Rogue 91 Adventurer 0 Explorer 0 Win Type - Total 0 Types 0/0/0/0/0/0/0/0/0/0 Lore% 15 Gallery% 31 Achievement% 20 Wizard Run 0 Options --------- Layout 0 ASCII 0 Keyboard 0 Movement Mouse Keybinds 0 Fullscreen 2 Font 18/SmallcapsGlow Map View 76x50 Zoom Use 0% Tactical HUD 1 Map Filters NONE Filters NONE Steam 1 RUN: d1004ede-9499-4b99-80f2-6a5a2142b17c